bitfinex/quotes_BTCUSD_20220212
["timestamp","ask_amount","ask_price","bid_price","bid_amount"]
[1644681881897,1.26,42073.0,42068.0,0.01842046]
[1644681882095,1.26,42071.0,42068.0,0.01842046]
[1644681882293,0.694,42070.0,42068.0,0.01842046]
[1644681882493,1.26,42069.0,42068.0,0.01842046]
[1644681882693,1.26,42069.0,42068.0,0.01392046]
[1644681882694,1.54732239,42069.0,42068.0,0.01392046]
[1644681882893,1.64732239,42069.0,42068.0,0.01392046]
[1644681883497,0.8,42068.0,42067.0,0.0011]
[1644681883696,1.1477,42068.0,42067.0,0.0011]
[1644681883893,1.4077,42068.0,42067.0,0.0011]
[1644681884093,1.42006463,42068.0,42067.0,0.0011]
[1644681884741,2.01636463,42068.0,42067.0,0.0011]
[1644681887839,1.25977361,42066.0,42064.0,0.001]
[1644681888094,0.7797293,42065.0,42064.0,0.001]
[1644681888290,2.13950291,42065.0,42064.0,0.001]
[1644681888689,2.1830619,42065.0,42064.0,0.001]
[1644681888894,2.1830619,42065.0,42063.0,0.0011]
[1644681888895,0.22748374,42064.0,42063.0,0.0011]
[1644681889090,1.58211322,42064.0,42063.0,0.0011]
[1644681889290,1.63495735,42064.0,42063.0,0.0011]
[1644681890492,1.63495735,42064.0,42057.0,0.00222092]
[1644681890690,1.25977361,42063.0,42057.0,0.00222092]
[1644681890891,1.40747361,42063.0,42057.0,0.00222092]
[1644681891095,1.40747361,42063.0,42062.0,0.08390738]
[1644681891096,1.25977361,42063.0,42062.0,0.08390738]
[1644681891299,0.178504,42066.0,42062.0,0.0011]
[1644681891494,0.1724497,42066.0,42062.0,0.0011]
[1644681892339,0.1724497,42066.0,42062.0,0.00129633]
[1644681893137,0.1724497,42066.0,42063.0,0.2506048]
[1644681893938,0.00042726,42071.0,42064.0,0.12049112]
[1644681893939,0.11937726,42071.0,42064.0,0.12049112]
[1644681894141,0.11937726,42071.0,42070.0,0.31414708]
[1644681894142,0.00042726,42071.0,42070.0,0.31414708]
[1644681894340,7.26e-06,42071.0,42070.0,0.31414708]
[1644681894538,0.05,42074.0,42070.0,0.31414708]
[1644681894739,0.05,42087.0,42079.0,0.0841002]
[1644681894939,0.25575076,42087.0,42079.0,0.0841002]
[1644681895138,0.11892,42082.0,42072.0,0.045]
[1644681895340,0.05,42078.0,42072.0,0.104463]
[1644681895593,0.059465,42077.0,42071.0,0.045]
[1644681895795,0.05,42078.0,42076.0,0.045]
[1644681895995,0.05,42092.0,42076.0,0.045]
[1644681895996,0.3,42091.0,42076.0,0.045]
[1644681896195,0.118908,42087.0,42080.0,0.045]
[1644681896396,0.118908,42087.0,42081.0,0.059451]
[1644681896596,1.26,42086.0,42074.0,0.118907]
[1644681896796,0.118908,42087.0,42077.0,0.20558198]
[1644681896797,0.32719138,42087.0,42077.0,0.20558198]
[1644681896994,0.059451,42085.0,42077.0,0.20558198]
[1644681897394,0.059451,42085.0,42080.0,0.07501913]
[1644681898395,0.059451,42085.0,42080.0,0.28804915]
[1644681898594,0.059451,42085.0,42080.0,0.21303002]
[1644681898595,0.0596826,42085.0,42080.0,0.21303002]
[1644681898796,0.0596826,42085.0,42079.0,0.118905]
[1644681898998,0.0596826,42085.0,42080.0,0.118909]
[1644681899536,0.059451,42085.0,42080.0,0.118909]
[1644681899736,0.05987978,42085.0,42080.0,0.118909]
[1644681900135,0.05987978,42085.0,42084.0,0.2478952]
[1644681900341,0.05987978,42085.0,42084.0,0.33514529]
[1644681900537,0.00042878,42085.0,42084.0,0.33514529]
[1644681900737,0.059447,42089.0,42084.0,0.33514529]
[1644681901037,0.00042877,42087.0,42084.0,0.33514529]
[1644681901237,0.00042877,42087.0,42086.0,0.18996557]
[1644681901439,0.00042877,42087.0,42084.0,0.059447]
[1644681901838,0.059447,42089.0,42084.0,0.059447]
[1644681902039,0.059447,42089.0,42083.0,0.059451]
[1644681902243,0.00042876,42088.0,42083.0,0.059451]
[1644681902439,0.00012876,42088.0,42083.0,0.059451]
[1644681903092,0.059447,42089.0,42083.0,0.059451]
[1644681903293,0.059447,42089.0,42084.0,0.059447]
[1644681903692,0.05,42092.0,42084.0,0.059447]
[1644681903693,0.109443,42092.0,42084.0,0.059447]
[1644681903892,0.109443,42092.0,42085.0,0.118887]
[1644681904296,0.109443,42092.0,42089.0,0.08528486]
[1644681904492,0.109443,42092.0,42089.0,0.14473186]
[1644681905095,0.109443,42092.0,42089.0,0.059447]
[1644681905792,0.109443,42092.0,42086.0,0.00022505]
[1644681905994,0.04782063,42091.0,42085.0,0.00067698]
[1644681906192,0.109443,42092.0,42085.0,0.00067698]
[1644681906393,0.109443,42092.0,42087.0,0.059452]
[1644681906593,0.10350378,42092.0,42087.0,0.059452]
[1644681907041,0.10350378,42092.0,42089.0,0.08821621]
[1644681907042,0.1039112,42092.0,42089.0,0.08821621]
[1644681907242,0.1039112,42092.0,42089.0,0.20710321]
[1644681907455,0.00040742,42092.0,42091.0,0.045]
[1644681907643,0.00040742,42092.0,42091.0,0.345]
[1644681907842,0.00040742,42092.0,42091.0,0.045]
[1644681908042,0.25,42101.0,42091.0,0.045]
[1644681908241,0.2,42101.0,42096.0,0.0783493]
[1644681908441,0.2,42101.0,42098.0,0.22518664]
[1644681908842,0.175,42101.0,42098.0,0.22518664]
[1644681909042,0.0418,42101.0,42098.0,0.22518664]
[1644681909644,0.00023379,42102.0,42101.0,0.220871]
[1644681909943,0.00023379,42102.0,42098.0,0.18338664]
[1644681910342,0.05,42105.0,42098.0,0.18338664]
[1644681910591,0.00023379,42102.0,42098.0,0.18338664]
[1644681910791,0.00023379,42102.0,42099.0,0.19481212]
[1644681911590,0.05,42105.0,42099.0,0.19326101]
[1644681911792,0.059418,42110.0,42100.0,0.059416]
[1644681911794,0.00043147,42103.0,42100.0,0.059416]
[1644681911993,0.00043147,42103.0,42101.0,0.40385815]
[1644681912192,0.00043147,42103.0,42102.0,0.2910789]
[1644681912390,0.00043147,42103.0,42102.0,0.3387789]
[1644681912592,0.3181,42112.0,42106.0,0.58111114]
[1644681912791,0.3181,42112.0,42106.0,0.62611114]
[1644681913194,0.3181,42112.0,42109.0,0.045]
[1644681913195,0.2681,42112.0,42109.0,0.045]
[1644681913392,0.2681,42112.0,42110.0,0.29566007]
[1644681913592,0.01,42119.0,42110.0,0.29566007]
[1644681913795,0.01,42119.0,42116.0,0.2535268]
[1644681913994,0.01,42119.0,42117.0,0.07820279]
[1644681914244,0.5062,42123.0,42117.0,0.33888895]
[1644681914849,0.5062,42123.0,42117.0,0.26068616]
[1644681915047,0.5062,42123.0,42116.0,0.3606188]
[1644681915247,0.5062,42123.0,42116.0,0.107092]
[1644681915550,0.5062,42123.0,42105.0,0.045]
[1644681915551,0.09567901,42118.0,42102.0,0.64702]
[1644681915746,0.30043202,42122.0,42102.0,0.05942]
[1644681915747,0.005,42111.0,42102.0,0.05942]
[1644681915947,0.005,42112.0,42105.0,0.22352086]
[1644681916146,0.3,42116.0,42107.0,0.118832]
[1644681916347,0.35,42116.0,42107.0,0.118832]
[1644681916547,0.059416,42114.0,42106.0,0.059414]
[1644681916747,0.00041072,42111.0,42099.0,0.1144]
[1644681916947,0.00041072,42111.0,42100.0,0.3718]
[1644681917547,0.59645414,42112.0,42102.0,0.05942]
[1644681917746,0.60145414,42112.0,42102.0,0.05942]
[1644681918001,0.00041073,42108.0,42102.0,0.11884]
[1644681918593,0.00041073,42108.0,42103.0,0.237651]
[1644681918894,0.305,42112.0,42103.0,0.237651]
[1644681919095,0.00041073,42107.0,42103.0,0.237651]
[1644681920095,0.305,42112.0,42103.0,0.237651]
[1644681920298,0.059418,42110.0,42103.0,0.237651]
[1644681920497,0.29414097,42109.0,42103.0,0.237651]
[1644681920695,0.34914097,42109.0,42103.0,0.237651]
[1644681921097,0.34414097,42109.0,42103.0,0.237651]
[1644681921296,0.05,42109.0,42105.0,0.29260257]
[1644681921499,0.00057752,42111.0,42105.0,0.29260257]
[1644681922143,0.00057752,42111.0,42105.0,0.51111111]
[1644681922743,0.05498752,42115.0,42105.0,0.51111111]
[1644681922951,0.05498752,42115.0,42113.0,0.25752264]
[1644681923346,2.83475862,42118.0,42114.0,0.08242257]
[1644681923547,1.31,42126.0,42114.0,0.08242257]
[1644681923548,0.178248,42124.0,42114.0,0.08242257]
[1644681923747,0.08,42130.0,42122.0,0.07643692]
[1644681923748,0.00592654,42128.0,42122.0,0.07643692]
[1644681923946,0.315,42129.0,42123.0,0.26862787]
[1644681924145,0.315,42129.0,42121.0,0.01894813]
[1644681924345,0.315,42129.0,42112.0,0.33347757]
[1644681924346,0.059394,42127.0,42114.0,0.11879]
[1644681924547,0.005,42124.0,42114.0,0.11879]
[1644681924950,0.005,42124.0,42116.0,0.118789]
[1644681925145,0.005,42124.0,42117.0,0.23418758]
[1644681925147,0.00043304,42123.0,42117.0,0.23418758]
[1644681925347,0.00043304,42123.0,42117.0,0.32194875]
[1644681925594,0.00043304,42123.0,42118.0,0.059397]
[1644681926095,0.0594,42123.0,42114.0,0.11879]
[1644681926293,0.0594,42123.0,42112.0,0.6216631]
[1644681926294,0.0594,42123.0,42112.0,0.21797757]
[1644681926493,0.05983304,42123.0,42112.0,0.21797757]
[1644681927095,0.05983304,42123.0,42114.0,0.0594]
[1644681927296,0.0594,42123.0,42116.0,0.059398]
[1644681927500,0.00043305,42120.0,42116.0,0.059398]
[1644681928497,0.005,42122.0,42116.0,0.059398]
[1644681928699,0.00043305,42120.0,42116.0,0.059398]
[1644681929748,0.39818195,42126.0,42118.0,0.059396]
[1644681929950,0.00043305,42120.0,42118.0,0.059396]
[1644681930559,3.05e-06,42120.0,42118.0,0.059396]
[1644681930951,0.01,42129.0,42121.0,0.059378]
[1644681931151,0.01,42129.0,42123.0,0.059371]
[1644681931351,0.01,42129.0,42124.0,0.08906163]
[1644681931552,0.01,42129.0,42124.0,0.39875775]
[1644681931952,0.001,42132.0,42125.0,0.6]
[1644681932350,0.00023388,42129.0,42127.0,0.11874]
[1644681932550,0.00023388,42129.0,42127.0,0.237489]
[1644681932996,0.001,42132.0,42129.0,0.80023]
[1644681933390,0.001,42132.0,42129.0,0.918972]
[1644681933590,0.001,42132.0,42131.0,0.20941044]
[1644681934191,0.001,42132.0,42131.0,0.35941044]
[1644681934391,0.03,42133.0,42131.0,0.86876944]
[1644681934992,0.03,42133.0,42132.0,0.22833596]
[1644681935397,0.01,42139.0,42132.0,0.27333596]
[1644681935593,0.01,42139.0,42134.0,0.178066]
[1644681936091,0.01,42139.0,42134.0,0.46976266]
[1644681936293,0.01,42139.0,42134.0,0.56976266]
[1644681936494,0.01,42139.0,42134.0,0.58848066]
[1644681936740,0.01,42139.0,42135.0,0.059368]
[1644681937139,0.00143588,42138.0,42135.0,0.059368]
[1644681938242,0.001,42138.0,42135.0,0.059368]
[1644681938945,0.001,42138.0,42135.0,0.05496167]
[1644681940149,0.001,42138.0,42128.0,0.118745]
[1644681940150,0.005,42137.0,42128.0,0.118745]
[1644681940346,0.006,42138.0,42127.0,0.118754]
[1644681940604,0.005,42135.0,42127.0,0.118754]
[1644681940799,0.00523114,42135.0,42127.0,0.118754]
[1644681941002,0.04600441,42141.0,42130.0,0.25241322]
[1644681941299,0.00092444,42141.0,42134.0,0.05936]
[1644681941897,0.001,42146.0,42134.0,0.05936]
[1644681942098,0.001,42146.0,42142.0,0.26511801]
[1644681942300,0.001,42146.0,42142.0,0.20412388]
[1644681942499,0.001,42146.0,42140.0,0.059365]
[1644681942701,0.001,42146.0,42135.0,0.418714]
[1644681943400,0.001,42146.0,42135.0,0.118714]
[1644681943597,0.001,42146.0,42139.0,0.19623988]
[1644681943799,0.051,42146.0,42141.0,0.059363]
[1644681943999,0.051,42146.0,42140.0,0.059368]
[1644681944242,0.051,42146.0,42139.0,0.25870919]
[1644681944642,0.05,42147.0,42139.0,0.25870919]
[1644681945046,1.74698016,42143.0,42140.0,0.059368]
[1644681946045,0.00043534,42144.0,42140.0,0.059368]
[1644681946246,0.05980734,42144.0,42140.0,0.059368]
[1644681946647,0.059372,42144.0,42140.0,0.059368]
[1644681946849,0.05980701,42144.0,42140.0,0.059368]
[1644681947251,0.04016313,42143.0,42135.0,0.00072268]
[1644681947454,0.05,42140.0,42135.0,0.00072268]
[1644681947651,0.0477,42143.0,42135.0,0.00072268]
[1644681947652,0.39595891,42139.0,42135.0,0.00072268]
[1644681947849,0.36701967,42138.0,42135.0,0.00072268]
[1644681948098,0.0477,42137.0,42135.0,0.00072268]
[1644681949295,0.34993524,42137.0,42135.0,0.00072268]
[1644681949694,0.0477,42137.0,42135.0,0.00072268]
[1644681950295,0.0477,42137.0,42135.0,0.00041077]
[1644681951101,0.0477,42137.0,42134.0,0.059374]
[1644681951102,0.30223524,42136.0,42134.0,0.059374]
[1644681951297,0.35223524,42136.0,42134.0,0.059374]
[1644681951498,0.40223524,42136.0,42134.0,0.059374]
[1644681951738,0.1,42136.0,42134.0,0.059374]
[1644681951939,0.0001944,42137.0,42134.0,0.059374]
[1644681952740,0.30223524,42138.0,42134.0,0.059374]
[1644681952940,0.30242964,42138.0,42134.0,0.059374]
[1644681953140,0.30242964,42138.0,42134.0,0.118744]
[1644681953341,0.30242964,42138.0,42135.0,0.08220298]
[1644681953844,0.30223524,42138.0,42134.0,0.118744]
[1644681954040,0.30223524,42138.0,42135.0,0.19459793]
[1644681954241,0.059374,42142.0,42133.0,0.1980221]
[1644681954242,0.30263404,42139.0,42133.0,0.1980221]
[1644681954441,0.30263404,42139.0,42132.0,0.11612976]
[1644681954442,0.30223524,42138.0,42132.0,0.11612976]
[1644681954642,0.30223524,42137.0,42132.0,0.11612976]
[1644681954841,0.30223524,42137.0,42134.0,0.05937]
[1644681955242,0.30264446,42137.0,42134.0,0.05937]
[1644681955888,0.30264446,42137.0,42134.0,0.06007608]
[1644681956090,0.30223524,42136.0,42134.0,0.11945008]
[1644681956889,0.30223524,42135.0,42134.0,0.11945008]
[1644681957290,0.35317826,42138.0,42134.0,0.11945008]
[1644681957291,0.30223524,42136.0,42134.0,0.11945008]
[1644681957492,0.30223524,42137.0,42135.0,0.08476588]
[1644681957691,0.00040922,42137.0,42135.0,0.08476588]
[1644681957892,0.00040922,42137.0,42136.0,0.28937994]
[1644681958690,0.30223524,42141.0,42136.0,0.28937994]
[1644681958890,0.00019495,42139.0,42136.0,0.28937994]
[1644681959093,0.00019495,42139.0,42137.0,0.3293801]
[1644681959343,0.00019495,42139.0,42138.0,0.28647186]
[1644681959841,0.30223524,42143.0,42138.0,0.28647186]
[1644681960041,0.30223524,42142.0,42139.0,0.059358]
[1644681960244,0.00019495,42141.0,42140.0,0.24360582]
[1644681960442,0.00019495,42141.0,42140.0,0.52038755]
[1644681960643,0.00019495,42141.0,42140.0,0.24360582]
[1644681961045,0.30223524,42143.0,42140.0,0.24360582]
[1644681961450,0.30223524,42146.0,42141.0,0.8]
[1644681961649,0.30223524,42147.0,42145.0,0.25003128]
[1644681961846,0.01160509,42149.0,42145.0,0.30937628]
[1644681961847,0.30223524,42148.0,42145.0,0.30937628]
[1644681962046,0.00160509,42149.0,42146.0,0.8]
[1644681962249,0.30334737,42151.0,42148.0,0.05]
[1644681962448,0.001,42151.0,42149.0,0.13372024]
[1644681963001,0.001,42157.0,42149.0,0.35809227]
[1644681963002,0.29834737,42153.0,42149.0,0.35809227]
[1644681963192,0.35276904,42156.0,42149.0,0.41742627]
[1644681963392,0.35276904,42156.0,42149.0,0.51742627]
[1644681963992,0.35276904,42156.0,42154.0,0.20373379]
[1644681964195,0.35276904,42156.0,42149.0,0.31261519]
[1644681964394,0.01,42159.0,42153.0,0.80188]
[1644681964395,0.36276904,42159.0,42153.0,0.80188]
[1644681964596,0.01,42159.0,42154.0,0.0477]
[1644681964796,0.01,42159.0,42155.0,0.17795]
[1644681964994,0.26749315,42167.0,42157.0,0.05]
[1644681965197,0.079,42168.0,42161.0,0.22080975]
[1644681965395,0.079,42168.0,42162.0,0.20977704]
[1644681965596,0.079,42168.0,42157.0,0.0477]
[1644681965801,0.11217559,42161.0,42157.0,0.177943]
[1644681965994,0.09564331,42160.0,42157.0,0.177943]
[1644681966195,0.09564331,42160.0,42157.0,0.237258]
[1644681966395,0.11217559,42161.0,42157.0,0.237258]
[1644681966596,0.11217559,42161.0,42151.0,0.118679]
[1644681966597,0.22840877,42159.0,42151.0,0.118679]
[1644681966848,0.09360411,42158.0,42151.0,0.118679]
[1644681967046,0.11217559,42161.0,42151.0,0.118679]
[1644681967047,0.09360411,42157.0,42151.0,0.118679]
[1644681967247,0.11217559,42161.0,42153.0,0.118684]
[1644681967444,0.0004383,42158.0,42153.0,0.118684]
[1644681967845,0.0004383,42158.0,42156.0,0.22860564]
[1644681968045,0.0004383,42158.0,42157.0,0.08154101]
[1644681968244,0.11217559,42161.0,42157.0,0.08154101]
[1644681968446,0.11217559,42161.0,42157.0,0.25951901]
[1644681968846,0.00043829,42159.0,42157.0,0.20019301]
[1644681969450,0.11217559,42161.0,42157.0,0.20019301]
[1644681969649,0.75559912,42168.0,42166.0,0.06639069]
[1644681969650,0.079,42168.0,42166.0,0.06639069]
[1644681969848,0.10127899,42167.0,42166.0,0.06639069]
[1644681970045,0.09117899,42167.0,42166.0,0.06639069]
[1644681970247,0.079,42168.0,42166.0,0.12570469]
[1644681970504,0.079,42168.0,42167.0,0.21048465]
[1644681972297,0.43159877,42168.0,42167.0,0.21048465]
[1644681972501,0.02532469,42168.0,42167.0,0.21048465]
[1644681972697,0.03532469,42169.0,42167.0,0.21048465]
[1644681973400,0.01,42179.0,42167.0,0.21048465]
[1644681973401,0.40293717,42180.0,42172.0,1.319305]
[1644681973599,0.00015,42186.0,42180.0,0.33283]
[1644681973797,0.00015,42186.0,42181.0,0.06672542]
[1644681973798,0.0011,42185.0,42181.0,0.06672542]
[1644681973997,0.0011,42185.0,42181.0,0.11042542]
[1644681974265,0.032,42193.0,42184.0,0.331025]
[1644681974466,0.032,42193.0,42190.0,0.2004143]
[1644681974666,0.032,42193.0,42192.0,0.1846901]
[1644681974865,0.5852,42206.0,42192.0,0.2346901]
[1644681975068,0.5852,42206.0,42193.0,0.674725]
[1644681975069,0.079,42206.0,42193.0,0.674725]
[1644681975264,0.079,42206.0,42198.0,0.06999493]
[1644681975265,0.07555659,42206.0,42198.0,0.06999493]
[1644681975565,0.001,42214.0,42198.0,0.06999493]
[1644681975566,0.001,42214.0,42199.0,0.102949]
[1644681975963,0.001,42214.0,42199.0,0.36856166]
[1644681975964,0.23787302,42209.0,42199.0,0.36856166]
[1644681976165,0.23787302,42209.0,42199.0,0.102949]
[1644681976764,0.23787302,42209.0,42204.0,0.08732663]
[1644681976964,0.23787302,42209.0,42200.0,0.118536]
[1644681977999,0.23787302,42209.0,42200.0,0.19828265]
[1644681978393,0.01,42209.0,42208.0,0.07505161]
[1644681978593,0.01,42209.0,42205.0,0.177771]
[1644681979493,0.01,42209.0,42206.0,0.059266]
[1644681979494,0.01023097,42209.0,42206.0,0.059266]
[1644681980195,0.002,42212.0,42206.0,0.359266]
[1644681980393,0.002,42212.0,42206.0,0.581376]
[1644681980594,0.011,42219.0,42208.0,0.8]
[1644681980796,0.0011,42217.0,42209.0,0.631025]
[1644681980994,0.0011,42217.0,42211.0,1.26]
[1644681981194,0.0011,42217.0,42214.0,0.261998]
[1644681981394,0.0001,42217.0,42214.0,0.261998]
[1644681981594,0.002,42221.0,42215.0,0.5]
[1644681981846,0.3011113,42234.0,42221.0,0.468447]
[1644681982043,0.001,42235.0,42221.0,0.118447]
[1644681982643,0.001,42235.0,42222.0,0.059224]
[1644681982644,0.22259413,42223.0,42222.0,0.059224]
[1644681982850,0.36,42229.0,42213.0,0.236911]
[1644681983043,0.41,42229.0,42213.0,0.236911]
[1644681983244,0.01,42229.0,42217.0,0.059248]
[1644681983543,0.31,42229.0,42221.0,0.23489853]
[1644681983744,0.22111708,42228.0,42221.0,0.23489853]
[1644681983943,0.0011,42228.0,42222.0,0.059242]
[1644681984143,0.0011,42228.0,42219.0,0.06481126]
[1644681984343,0.00044548,42227.0,42219.0,0.06481126]
[1644681984542,0.00044548,42227.0,42218.0,0.177731]
[1644681984743,0.00044548,42227.0,42213.0,0.3]
[1644681985146,0.00044548,42227.0,42218.0,0.24262468]
[1644681985502,0.20751887,42223.0,42212.0,0.118497]
[1644681985797,0.0011,42228.0,42213.0,0.3]
[1644681985798,0.00044551,42222.0,42213.0,0.3]
[1644681985994,0.00044551,42222.0,42212.0,0.118497]
[1644681986194,0.00044551,42222.0,42214.0,0.05]
[1644681986395,0.00088447,42227.0,42216.0,0.118486]
[1644681986595,0.00088447,42227.0,42218.0,0.20772809]
[1644681986794,0.00092315,42225.0,42219.0,0.2025853]
[1644681986994,0.00092315,42225.0,42218.0,0.118481]
[1644681987398,0.00092315,42225.0,42216.0,0.118486]
[1644681987399,0.04991007,42217.0,42216.0,0.118486]
[1644681987996,0.04991007,42217.0,42216.0,0.20737307]
[1644681988197,0.04991007,42217.0,42216.0,0.118486]
[1644681988996,0.04991007,42217.0,42216.0,0.31071019]
[1644681989443,0.04991007,42217.0,42216.0,0.26827085]
[1644681989843,0.00173207,42225.0,42224.0,0.08131147]
[1644681990043,0.30088447,42227.0,42224.0,0.08131147]
[1644681990044,0.00088447,42227.0,42224.0,0.08131147]
[1644681990447,1.433e-05,42229.0,42225.0,0.35]
[1644681990843,1.433e-05,42229.0,42227.0,0.20950234]
[1644681991247,1.433e-05,42229.0,42227.0,0.26872234]
[1644681991443,1.433e-05,42229.0,42228.0,0.06532306]
[1644681992246,3.846e-05,42230.0,42229.0,0.6]
[1644681992849,3.846e-05,42230.0,42229.0,0.7]
[1644681993091,3.846e-05,42230.0,42229.0,0.6]
[1644681993291,3.846e-05,42230.0,42229.0,0.7]
[1644681993493,3.846e-05,42230.0,42229.0,0.6]
[1644681993691,3.846e-05,42230.0,42228.0,0.177652]
[1644681993993,3.846e-05,42230.0,42226.0,0.059222]
[1644681994793,3.846e-05,42230.0,42220.0,0.118472]
[1644681995193,0.05,42232.0,42220.0,0.118472]
[1644681995194,0.23247163,42235.0,42220.0,0.118472]
[1644681995397,0.28247163,42235.0,42220.0,0.118472]
[1644681995593,0.28247163,42235.0,42225.0,0.118442]
[1644681995594,0.18598462,42235.0,42225.0,0.118442]
[1644681995797,0.18598462,42235.0,42214.0,0.61765516]
[1644681995798,0.05738327,42224.0,42214.0,0.61765516]
[1644681995994,0.05738327,42224.0,42214.0,0.059252]
[1644681996197,0.05738327,42224.0,42216.0,0.177699]
[1644681996746,0.05238327,42224.0,42216.0,0.177699]
[1644681996945,0.05238327,42224.0,42217.0,0.08334856]
[1644681997146,0.05238327,42224.0,42218.0,0.059237]
[1644681997348,0.05238327,42224.0,42217.0,0.118474]
[1644681997546,0.05238327,42224.0,42209.0,0.05]
[1644681997547,0.05238327,42224.0,42209.0,0.168507]
[1644681997747,0.05238327,42224.0,42213.0,0.059254]
[1644681998147,0.05238327,42224.0,42216.0,0.059243]
[1644681998948,0.05238327,42224.0,42218.0,0.00044864]
[1644681999147,0.05238327,42224.0,42219.0,0.2096902]
[1644682000149,0.05238327,42224.0,42219.0,0.21013883]
[1644682000348,0.05238327,42224.0,42219.0,0.00044863]
[1644682000599,0.27188026,42223.0,42219.0,0.00044863]
[1644682001194,0.05238327,42224.0,42216.0,0.059251]
[1644682001497,0.05238327,42224.0,42216.0,0.31066156]
[1644682001894,0.05238327,42224.0,42217.0,0.00059163]
[1644682003799,0.05,42222.0,42218.0,0.00044915]
[1644682003997,0.059256,42223.0,42218.0,0.00044915]
[1644682004249,0.059256,42223.0,42218.0,0.00023545]
[1644682004250,0.05,42219.0,42218.0,0.00023545]
[1644682004648,0.0937,42219.0,42218.0,0.00023545]
[1644682004849,0.2277935,42206.0,42199.0,0.059274]
[1644682005151,0.0437,42205.0,42199.0,0.059274]
[1644682005350,0.0437,42205.0,42201.0,0.04806647]
[1644682005752,0.4463655,42206.0,42201.0,0.04806647]
[1644682005753,0.3156253,42206.0,42201.0,0.04806647]
[1644682006049,0.059285,42204.0,42201.0,0.04806647]
[1644682006251,0.28263459,42203.0,42201.0,0.04806647]
[1644682006653,0.28263459,42203.0,42196.0,0.50341707]
[1644682007251,0.28263459,42203.0,42196.0,0.26853165]
[1644682007654,0.32498568,42206.0,42197.0,0.14516951]
[1644682007996,0.32498568,42206.0,42203.0,0.2537987]
[1644682007997,0.05,42206.0,42203.0,0.2537987]
[1644682008193,0.05,42206.0,42197.0,0.08589751]
[1644682008194,0.29178247,42206.0,42197.0,0.08589751]
[1644682008396,0.29178247,42206.0,42195.0,0.35593585]
[1644682008397,0.24178247,42206.0,42204.0,0.06880543]
[1644682008593,0.2850533,42205.0,42204.0,0.06880543]
[1644682008793,0.0937,42208.0,42204.0,0.06880543]
[1644682008994,0.0437,42208.0,42204.0,0.06880543]
[1644682009196,0.27020547,42207.0,42204.0,0.06880543]
[1644682009394,0.27020547,42207.0,42201.0,0.0706513]
[1644682009993,0.0437,42208.0,42201.0,0.0706513]
[1644682010194,0.27128522,42207.0,42201.0,0.0706513]
[1644682010495,0.49892055,42207.0,42201.0,0.0706513]
[1644682011101,0.49892055,42207.0,42198.0,0.00074518]
[1644682012175,0.49892055,42207.0,42201.0,0.08714483]
[1644682012975,0.22763533,42207.0,42201.0,0.08714483]
[1644682013475,0.49586788,42207.0,42201.0,0.08714483]
[1644682014077,0.49586788,42207.0,42200.0,0.00045012]
[1644682014277,0.059279,42206.0,42200.0,0.00045012]
[1644682014476,0.059279,42206.0,42198.0,0.00074518]
[1644682014676,0.059279,42206.0,42200.0,0.00045012]
[1644682014876,0.059279,42206.0,42200.0,6.961e-05]
[1644682015078,0.059279,42206.0,42204.0,0.07497771]
[1644682015279,0.3909,42212.0,42204.0,0.06719735]
[1644682015497,0.25046493,42209.0,42204.0,0.06719735]
[1644682015692,0.25046493,42209.0,42198.0,0.06001718]
[1644682015693,0.25046493,42209.0,42199.0,0.00071819]
[1644682015892,0.25046493,42208.0,42199.0,0.00071819]
[1644682016092,0.25046493,42209.0,42203.0,0.1939387]
[1644682016295,0.53280491,42210.0,42203.0,0.1939387]
[1644682016492,0.25046493,42208.0,42199.0,0.05998819]
[1644682016891,0.26696329,42207.0,42203.0,0.08314144]
[1644682017093,0.24228706,42207.0,42203.0,0.08314144]
[1644682017295,0.3011113,42205.0,42203.0,0.08314144]
[1644682017494,0.684058,42214.0,42203.0,0.08314144]
[1644682017495,0.25170098,42204.0,42203.0,0.08314144]
[1644682017695,0.3052513,42206.0,42203.0,0.08314144]
[1644682017696,0.00414,42206.0,42203.0,0.08314144]
[1644682017894,0.00414,42206.0,42204.0,0.331025]
[1644682018094,0.00414,42206.0,42203.0,0.08314144]
[1644682019354,0.25584098,42206.0,42203.0,0.14239944]
[1644682019554,0.00044952,42209.0,42203.0,0.14239944]
[1644682019555,0.00044952,42209.0,42205.0,0.331025]
[1644682019755,0.00044952,42209.0,42207.0,0.331025]
[1644682019955,0.00044952,42209.0,42208.0,1.07010312]
[1644682020155,0.00044952,42209.0,42208.0,1.18858212]
[1644682020156,9.52e-06,42209.0,42208.0,1.18858212]
[1644682020354,9.52e-06,42209.0,42208.0,0.362179]
[1644682020554,9.52e-06,42209.0,42208.0,0.318479]
[1644682021154,0.3011113,42212.0,42208.0,0.268479]
[1644682021355,0.3011113,42212.0,42209.0,0.118503]
[1644682021759,0.3011113,42212.0,42210.0,0.06447728]
[1644682022154,0.35135367,42214.0,42210.0,0.06447728]
[1644682022155,0.3011113,42211.0,42210.0,0.06447728]
[1644682022356,0.3011113,42211.0,42209.0,0.118503]
[1644682022554,0.35135367,42213.0,42209.0,0.118503]
[1644682022555,0.3011113,42210.0,42209.0,0.118503]
[1644682022755,0.3011113,42210.0,42208.0,0.118479]
[1644682023001,0.3011113,42209.0,42208.0,0.118479]
[1644682023599,0.3011113,42210.0,42208.0,0.18801366]
[1644682023798,0.30156544,42211.0,42208.0,0.18801366]
[1644682024399,0.35135367,42213.0,42208.0,0.118479]
[1644682024400,0.3011113,42210.0,42208.0,0.118479]
[1644682024599,0.3011113,42209.0,42208.0,0.118479]
[1644682024899,0.3011113,42210.0,42208.0,0.118479]
[1644682025099,0.3011113,42210.0,42209.0,0.05]
[1644682025298,0.3011113,42212.0,42209.0,0.331025]
[1644682025499,0.3011113,42212.0,42210.0,0.07329413]
[1644682025699,0.30211355,42214.0,42213.0,0.059248]
[1644682025898,0.35246581,42216.0,42215.0,0.059249]
[1644682026600,0.34654459,42216.0,42215.0,0.059249]
[1644682026847,0.34654459,42216.0,42213.0,0.059248]
[1644682026848,0.22152351,42216.0,42213.0,0.059248]
[1644682027046,0.0536211,42214.0,42213.0,0.059248]